bitfinex-derivatives/quotes_ETHF0:USTF0_20260119
["timestamp","ask_amount","ask_price","bid_price","bid_amount"]
[1768842798611,0.0026511,3226.0,3224.8,1.28424642]
[1768842798810,0.85459196,3225.9,3224.8,1.28424642]
[1768842799011,0.0026511,3226.0,3224.8,1.28424642]
[1768842799211,0.85459152,3225.9,3224.8,1.28424642]
[1768842799410,0.0026511,3226.0,3224.8,1.28424642]
[1768842799711,0.85456729,3225.9,3224.8,1.28424642]
[1768842799903,0.0026511,3226.0,3224.8,1.28424642]
[1768842800809,0.85451109,3225.9,3224.8,1.28424642]
[1768842801010,0.0026511,3226.0,3224.6,0.13925229]
[1768842802107,0.0026511,3226.0,3224.8,1.28280994]
[1768842803612,0.0026511,3226.0,3224.6,0.13925229]
[1768842815522,0.14138854,3226.0,3224.6,3.039]
[1768842816021,0.85572675,3225.9,3224.6,3.039]
[1768842816319,0.14138854,3226.0,3224.6,3.039]
[1768842816621,0.85580111,3225.9,3224.6,3.039]
[1768842816811,0.14138854,3226.0,3224.6,3.039]
[1768842817017,0.85580111,3225.9,3224.6,3.039]
[1768842817327,0.14138854,3226.0,3224.6,3.039]
[1768842817512,0.85591551,3225.9,3224.6,3.039]
[1768842817711,0.14138854,3226.0,3224.4,0.15515]
[1768842817913,0.13873744,3225.8,3224.5,3.043]
[1768842822826,0.0026511,3226.0,3224.5,3.043]
[1768842823014,0.8561646,3225.9,3224.5,3.043]
[1768842823312,0.8561646,3225.8,3224.5,3.043]
[1768842823513,0.0026511,3226.0,3224.5,3.043]
[1768842823726,0.85623116,3225.9,3224.5,3.043]
[1768842823920,0.85623116,3225.8,3224.5,3.043]
[1768842824126,0.1394051,3226.0,3224.5,3.043]
[1768842824425,0.85630056,3225.9,3224.4,0.15515]
[1768842824618,0.85630056,3225.8,3224.4,3.21215]
[1768842824818,0.1394051,3226.0,3224.4,3.21215]
[1768842825019,0.85630206,3225.9,3224.4,3.21215]
[1768842825219,0.85630206,3225.8,3224.4,3.21215]
[1768842825426,0.1394051,3226.0,3224.4,3.21215]
[1768842825627,0.85637021,3225.9,3224.4,3.21215]
[1768842825924,0.85637021,3225.8,3224.4,3.21215]
[1768842826226,0.1394051,3226.0,3224.4,3.21215]
[1768842826427,0.85639448,3225.9,3224.4,3.21215]
[1768842826628,0.85639448,3225.8,3224.4,3.21215]
[1768842826825,0.1394051,3226.0,3224.4,3.21215]
[1768842827028,0.85397633,3225.9,3224.4,3.21215]
[1768842827323,0.85397633,3225.8,3224.4,3.35495592]
[1768842827525,0.1394051,3226.0,3224.4,3.35495592]
[1768842827726,0.85401418,3225.9,3224.5,0.14280592]
[1768842827929,0.85401418,3225.8,3224.5,0.14280592]
[1768842828229,0.0026511,3226.0,3224.5,0.14280592]
[1768842828424,0.85403115,3225.9,3224.5,0.14280592]
[1768842828623,0.85403115,3225.8,3224.5,0.14280592]
[1768842828828,0.0026511,3226.0,3224.5,0.14280592]
[1768842829125,0.85403115,3225.9,3224.5,0.14280592]
[1768842829423,0.85403115,3225.8,3224.5,0.14280592]
[1768842829625,0.0026511,3226.0,3224.5,0.14280592]
[1768842829822,0.854063,3225.9,3224.5,0.14280592]
[1768842830025,0.0026511,3226.0,3224.5,0.14280592]
[1768842830026,0.990817,3225.8,3224.5,3.067]
[1768842830226,0.136754,3225.8,3224.5,3.067]
[1768842830934,0.136754,3225.8,3224.4,0.15515]
[1768842831136,0.136754,3225.8,3224.5,3.069]
[1768842836035,0.136754,3225.8,3224.4,3.23115]
[1768842839338,0.0026511,3226.0,3224.5,0.14291512]
[1768842839527,0.85413876,3225.9,3224.5,0.14291512]
[1768842839835,0.0026511,3226.0,3224.5,0.14291512]
[1768842840032,0.85412474,3225.9,3224.5,0.14291512]
[1768842840238,0.0026511,3226.0,3224.5,0.14291512]
[1768842840437,0.85412639,3225.9,3224.5,0.14291512]
[1768842840639,0.0026511,3226.0,3224.5,0.14291512]
[1768842840841,0.854127,3225.9,3224.5,0.14291512]
[1768842841038,0.0026511,3226.0,3224.5,0.14291512]
[1768842841237,0.85412717,3225.9,3224.5,0.14291512]
[1768842841441,0.0026511,3226.0,3224.5,0.14291512]
[1768842841741,0.85412836,3225.9,3224.5,0.14291512]
[1768842841959,0.14170696,3226.0,3224.5,0.14291512]
[1768842842239,0.85413021,3225.9,3224.5,0.14291512]
[1768842842439,0.14170696,3226.0,3224.5,0.14291512]
[1768842842642,0.85413392,3225.9,3224.5,0.14291512]
[1768842842944,0.14170696,3226.0,3224.5,0.14291512]
[1768842843141,0.85413392,3225.9,3224.5,0.14291512]
[1768842843342,0.14170696,3226.0,3224.5,0.14291512]
[1768842843536,0.85413928,3225.9,3224.5,0.14291512]
[1768842843736,0.14170696,3226.0,3224.5,0.14291512]
[1768842843936,0.8541393,3225.9,3224.6,3.095]
[1768842844131,0.14170696,3226.0,3224.6,3.095]
[1768842844341,0.85416471,3225.9,3224.6,3.095]
[1768842844537,0.14170696,3226.0,3224.6,3.095]
[1768842844836,0.85416058,3225.9,3224.6,3.095]
[1768842845028,0.14170696,3226.0,3224.6,3.095]
[1768842845234,0.85416058,3225.9,3224.6,3.095]
[1768842845532,0.14170696,3226.0,3224.6,3.095]
[1768842845732,0.85418351,3225.9,3224.6,3.095]
[1768842845942,0.14170696,3226.0,3224.6,3.095]
[1768842846140,0.85418351,3225.9,3224.6,3.095]
[1768842846344,0.14170696,3226.0,3224.6,3.095]
[1768842846641,0.85418448,3225.9,3224.6,3.095]
[1768842846842,0.14170696,3226.0,3224.6,3.095]
[1768842847042,0.85418448,3225.9,3224.6,3.095]
[1768842847243,0.14170696,3226.0,3224.6,3.095]
[1768842847444,0.85417846,3225.9,3224.6,3.095]
[1768842847639,0.13905586,3225.8,3224.4,2.77129204]
[1768842847840,1.28280994,3225.2,3224.4,2.77129204]
[1768842848047,1.28280994,3225.2,3223.9,0.00292182]
[1768842848344,1.4218658,3225.2,3223.9,0.00292182]
[1768842848545,0.13905586,3225.2,3223.9,0.00292182]
[1768842848747,0.85362165,3225.1,3223.9,0.00292182]
[1768842848939,0.85362165,3225.0,3223.9,0.00292182]
[1768842849137,0.85362165,3224.9,3223.9,0.00292182]
[1768842849339,0.13905586,3225.2,3223.9,0.00292182]
[1768842849640,0.85295712,3225.1,3223.9,0.00292182]
[1768842849840,0.85295712,3225.0,3223.9,0.00292182]
[1768842850038,0.13905586,3225.2,3223.9,0.00292182]
[1768842850240,0.85294993,3225.1,3223.9,0.00292182]
[1768842850545,0.13905586,3225.2,3223.9,0.00292182]
[1768842850846,0.85256166,3225.1,3223.9,0.00292182]
[1768842851143,0.13905586,3225.2,3223.9,0.00292182]
[1768842854145,0.1551,3225.5,3224.0,0.14291512]
[1768842854345,0.85174098,3225.4,3224.0,0.14291512]
[1768842854646,0.1551,3225.5,3224.0,0.14291512]
[1768842854833,0.85162582,3225.4,3224.0,0.14291512]
[1768842855041,0.1551,3225.5,3224.0,0.14291512]
[1768842855238,0.85162582,3225.4,3224.0,0.14291512]
[1768842855446,0.1551,3225.5,3224.0,0.14291512]
[1768842855746,0.85152481,3225.4,3224.0,0.14291512]
[1768842856048,0.1551,3225.5,3224.0,0.14291512]
[1768842856249,0.85152468,3225.4,3224.0,0.14291512]
[1768842856439,0.1551,3225.5,3224.0,0.14291512]
[1768842856639,0.85144091,3225.4,3224.0,0.14291512]
[1768842856951,0.1551,3225.5,3224.0,0.14291512]
[1768842857146,0.85660575,3225.4,3224.0,0.14291512]
[1768842857346,0.1551,3225.5,3224.0,0.14291512]
[1768842857547,0.85653585,3225.4,3224.0,0.14291512]
[1768842857852,0.29415586,3225.5,3224.0,0.14291512]
[1768842858049,0.85652517,3225.4,3224.0,0.14291512]
[1768842858348,0.29415586,3225.5,3224.0,0.14291512]
[1768842858543,0.85648595,3225.4,3224.0,0.14291512]
[1768842858746,0.14170696,3226.0,3224.4,0.14291512]
[1768842858952,0.99545673,3225.9,3224.4,0.14291512]
[1768842859143,0.85640087,3225.8,3224.4,0.14291512]
[1768842859343,0.85640087,3225.7,3224.4,0.14291512]
[1768842859545,0.13905586,3225.9,3224.4,0.14291512]
[1768842859745,0.85642343,3225.8,3224.4,0.14291512]
[1768842860055,0.85642343,3225.7,3224.4,0.14291512]
[1768842860248,0.13905586,3225.9,3224.4,0.14291512]
[1768842860446,0.85645741,3225.8,3224.4,0.14291512]
[1768842860645,0.85645741,3225.7,3224.4,0.14291512]
[1768842860944,0.13905586,3225.9,3224.4,0.14291512]
[1768842861146,0.8564577,3225.8,3224.4,0.14291512]
[1768842861345,0.8564577,3225.7,3224.4,0.14291512]
[1768842861550,0.13905586,3225.9,3224.4,0.14291512]
[1768842861849,0.85649607,3225.8,3224.4,0.14291512]
[1768842862053,0.13905586,3225.9,3224.4,0.14291512]
[1768842862355,0.85649085,3225.8,3224.4,0.14291512]
[1768842862650,0.13905586,3225.9,3224.4,0.14291512]
[1768842862852,0.85653295,3225.8,3224.7,1.28291394]
[1768842863049,0.13905586,3225.9,3224.7,1.28291394]
[1768842863237,0.85653296,3225.8,3224.4,0.14291512]
[1768842863438,0.13905586,3225.9,3224.6,1.28291394]
[1768842863638,1.28556504,3226.0,3224.6,1.28291394]
[1768842863639,1.00006752,3225.8,3224.6,1.28291394]
[1768842863952,0.85660489,3225.7,3224.6,1.28291394]
[1768842864150,1.42640168,3225.8,3224.6,1.28291394]
[1768842864354,1.0000858,3225.7,3224.6,1.28291394]
[1768842864653,0.14348774,3225.7,3224.6,1.28291394]
[1768842864954,0.14348774,3225.7,3224.4,1.28291394]
[1768842867060,0.14348774,3225.6,3224.0,0.13109922]
[1768842867356,0.14348774,3225.6,3224.4,1.28291394]
[1768842869054,0.14348774,3225.6,3224.0,0.13109922]
[1768842869353,0.14348774,3225.6,3224.1,1.28291394]
[1768842869558,0.14348774,3225.6,3224.3,1.28291394]
[1768842870850,0.14348774,3225.6,3224.0,0.13109922]
[1768842871051,0.14348774,3225.6,3224.3,1.28291394]
[1768842871251,0.5,3224.8,3224.3,1.28291394]
[1768842873061,0.40131266,3224.8,3224.3,1.28291394]
[1768842873561,0.14348774,3225.6,3224.3,1.28291394]
[1768842873764,0.14348774,3225.6,3224.5,1.28291394]
[1768842875551,0.14348774,3225.6,3224.4,1.28291394]
[1768842877260,0.85802434,3225.5,3224.4,1.28291394]
[1768842877461,0.14348774,3225.5,3224.2,1.28291394]
[1768842881465,0.14348774,3225.5,3224.0,0.13109922]
[1768842881761,0.85841143,3225.4,3224.2,1.28291394]
[1768842881964,0.14348774,3225.5,3224.2,1.28291394]
[1768842882157,0.85841138,3225.4,3224.2,1.28291394]
[1768842882351,0.14348774,3225.5,3224.2,1.28291394]
[1768842882556,0.8585458,3225.4,3224.2,1.28291394]
[1768842882766,0.14348774,3225.5,3224.2,1.28291394]
[1768842882968,0.85854583,3225.4,3224.2,1.28291394]
[1768842883265,0.14348774,3225.5,3224.2,1.28291394]
[1768842883464,0.8587057,3225.4,3224.0,0.13109922]
[1768842883765,0.8587057,3225.4,3224.2,1.28291394]
[1768842883766,0.13224848,3225.4,3224.2,1.28291394]
[1768842884064,1.28291394,3225.3,3224.0,1.41401316]
[1768842884567,1.28291394,3225.3,3224.0,0.13109922]
[1768842884964,0.5,3224.8,3224.0,0.13109922]
[1768842885864,0.5,3224.8,3223.9,0.00292182]
[1768842886266,1.78291394,3224.8,3223.9,0.00292182]
[1768842886467,0.85904242,3224.7,3223.9,0.00292182]
[1768842886764,1.28291394,3224.6,3223.9,0.00292182]
[1768842887765,1.28291394,3224.6,3223.3,1.28291394]
[1768842888966,0.5,3224.8,3223.5,1.28291394]
[1768842889169,0.85715678,3224.7,3223.5,1.28291394]
[1768842889368,0.5,3224.8,3223.5,1.28291394]
[1768842892966,1.91400229,3224.8,3223.3,1.28518357]
[1768842893570,0.13108835,3224.7,3223.3,1.28518357]
[1768842895559,1.41400229,3224.7,3223.3,1.28518357]
[1768842896876,1.28291394,3224.5,3223.3,0.00226963]
[1768842900277,0.13108835,3224.7,3223.4,1.28291394]
[1768842901679,1.41400229,3224.7,3223.4,1.28291394]
[1768842903891,1.41400229,3224.7,3223.3,0.00226963]
[1768842904589,1.28291394,3224.5,3223.3,0.00226963]
[1768842904783,0.13108835,3224.7,3223.4,1.28291394]
[1768842906589,0.85592266,3224.6,3223.3,0.00226963]
[1768842906791,1.28291394,3223.5,3222.3,0.13076736]
[1768842906990,1.41400229,3224.0,3222.6,1.28291394]
[1768842907191,0.85611587,3223.9,3222.6,1.28291394]
[1768842907491,1.41400229,3224.0,3222.6,1.28291394]
[1768842907694,0.85574306,3223.9,3222.6,1.28291394]
[1768842907988,0.003978,3224.0,3222.9,1.28291394]
[1768842908293,0.003978,3224.0,3222.7,1.4136813]
[1768842908792,1.28689194,3224.0,3222.7,0.13076736]
[1768842912194,1.28689194,3224.0,3222.8,1.28291394]
[1768842913793,0.003978,3224.0,3222.8,1.28291394]
[1768842913996,0.003978,3224.0,3223.2,1.28291394]
[1768842914400,1.28291394,3223.8,3222.7,0.13076736]
[1768842914594,0.003978,3224.0,3222.7,0.13076736]
[1768842914899,0.003978,3224.0,3223.4,1.28291394]
[1768842915100,0.5,3224.8,3223.4,1.28291394]
[1768842915395,0.855464,3224.7,3223.4,1.28291394]
[1768842915596,1.78291394,3224.8,3223.4,1.28291394]
[1768842915597,0.5,3224.8,3223.7,1.28291394]
[1768842915797,1.78291394,3224.8,3223.5,0.13076736]
[1768842916100,1.78670307,3224.8,3223.5,0.13076736]
[1768842917208,0.50378913,3224.8,3223.6,1.28291394]
[1768842917900,0.50378913,3224.8,3223.5,0.13076736]
[1768842918098,0.50378913,3224.8,3223.9,1.28291394]
[1768842918794,0.50378913,3224.8,3223.5,0.13076736]
[1768842919093,0.50378913,3224.8,3223.6,1.28291394]
[1768842922912,0.50378913,3224.8,3223.5,0.13076736]
[1768842927410,0.50378913,3224.8,3223.1,1.58003627]
[1768842927610,0.50378913,3224.8,3223.2,0.14101323]
[1768842928016,0.13443698,3224.7,3223.2,0.14101323]
[1768842930919,0.13443698,3224.7,3223.2,0.29621323]
[1768842931115,0.13443698,3224.7,3223.3,0.1552]
[1768842932014,0.50378913,3224.8,3223.5,0.15519]
[1768842933016,0.50378913,3224.8,3223.6,0.15519]
[1768842934611,0.50378913,3224.8,3223.7,0.15518]
[1768842934918,0.50378913,3224.8,3223.8,0.15518]
[1768842936911,0.50378913,3224.8,3223.8,1.43899304]
[1768842937115,0.50378913,3224.8,3223.8,1.58259168]
[1768842938420,0.50378913,3224.8,3223.9,0.15517]
[1768842938622,0.13778943,3225.5,3224.0,0.15517]
[1768842938816,0.86572032,3225.4,3224.0,0.15517]
[1768842939014,0.86572032,3225.3,3224.0,0.15517]
[1768842939214,0.13778943,3225.5,3224.0,0.15517]
[1768842939417,0.86585968,3225.4,3224.1,0.15516]
[1768842939716,0.00299252,3225.4,3224.1,0.15516]
[1768842940813,0.00299252,3225.4,3224.2,0.15516]
[1768842941206,0.00299252,3225.4,3224.2,1.43897304]
[1768842942412,0.00299252,3225.4,3224.3,0.15515]
[1768842949830,0.00299252,3225.4,3224.2,1.28381304]
[1768842951130,0.14640169,3225.4,3223.9,0.13636703]
[1768842954532,0.14640169,3225.4,3223.3,3.88402882]
[1768842954533,0.13323085,3225.2,3223.5,2.90462671]
[1768842954827,0.6181673,3225.1,3223.5,0.13333467]
[1768842955030,0.48493645,3225.0,3223.7,0.13333467]
[1768842955227,0.48493645,3224.9,3223.7,0.13333467]
[1768842955427,0.48493645,3224.8,3223.7,0.13333467]
[1768842955630,0.48493645,3224.7,3223.7,0.13333467]
[1768842955830,0.00299252,3225.4,3223.7,0.13333467]
[1768842956017,1.33011189,3225.3,3223.7,0.13333467]
[1768842956222,0.46053184,3225.2,3223.7,0.13333467]
[1768842956422,0.46053184,3225.1,3223.7,0.13333467]
[1768842956622,0.46053184,3225.0,3223.7,0.13333467]
[1768842956829,0.46053184,3224.9,3223.7,0.28851467]
[1768842957026,0.46053184,3224.8,3223.9,0.13333467]
[1768842957233,0.00299252,3225.4,3224.0,1.28381304]
[1768842957426,1.31988867,3225.3,3224.0,1.28381304]
[1768842957627,0.45019058,3225.2,3224.0,1.28381304]
[1768842957828,0.45019058,3225.1,3224.0,1.41714771]
[1768842958033,0.45019058,3225.0,3224.0,1.41714771]
[1768842958240,0.45019058,3224.9,3224.0,1.41714771]
[1768842958440,0.00299252,3225.4,3224.0,1.41714771]
[1768842958651,1.30913737,3225.3,3224.1,0.13333467]
[1768842958832,0.43937277,3225.2,3224.1,0.13333467]
[1768842959130,0.43937277,3225.1,3224.1,0.13333467]
[1768842959334,0.43937277,3225.0,3224.1,0.13333467]
[1768842959539,0.00299252,3225.4,3223.9,0.15517]
[1768842959746,1.29967095,3225.3,3223.9,0.15517]
[1768842959946,0.42983009,3225.2,3223.9,0.15517]
[1768842960244,0.42983009,3225.1,3223.9,0.15517]
[1768842960445,0.42983009,3225.0,3223.9,0.15517]
[1768842960640,0.13323085,3225.3,3223.9,0.15517]
[1768842960842,0.42985872,3225.2,3223.9,0.15517]
[1768842961044,0.42985872,3225.1,3223.9,0.15517]
[1768842961244,0.13323085,3224.9,3223.9,0.15517]
[1768842961451,0.42985872,3224.8,3223.9,0.15517]
[1768842963446,0.13622337,3225.4,3223.9,0.15517]
[1768842963648,1.42504816,3225.3,3223.9,0.15517]
[1768842963846,1.29181731,3225.2,3223.9,0.15517]
[1768842964046,0.42155904,3225.1,3223.9,0.15517]
[1768842964246,0.42155904,3225.0,3223.9,0.15517]
[1768842964447,0.42155904,3224.9,3223.9,0.15517]
[1768842964746,0.42155904,3224.8,3223.9,0.15517]
[1768842964949,0.13323085,3225.3,3223.9,0.15517]
[1768842965148,1.29199946,3225.2,3223.9,0.15517]
[1768842965351,1.29199946,3225.1,3223.9,0.15517]
[1768842965551,0.4216178,3225.0,3223.9,0.15517]
[1768842965851,0.42167344,3224.9,3223.9,0.15517]
[1768842966054,0.42167344,3224.8,3223.9,0.15517]
[1768842966241,0.13323085,3225.2,3223.9,0.15517]
[1768842966549,1.42560682,3225.1,3223.9,0.15517]
[1768842966751,0.4217384,3225.0,3223.9,0.15517]
[1768842966941,0.4217384,3224.9,3223.9,0.15517]
[1768842967144,0.4217384,3224.8,3223.9,0.15517]
[1768842967344,0.13323085,3225.1,3223.9,0.15517]
[1768842967544,0.42178002,3225.0,3223.9,0.15517]
[1768842967744,0.42178002,3224.9,3223.9,0.15517]
[1768842967956,0.42178002,3224.8,3223.9,0.15517]
[1768842968145,0.13323085,3225.1,3223.9,0.15517]
[1768842968345,0.55021407,3225.0,3223.9,0.15517]
[1768842968546,0.55021407,3224.9,3223.9,0.15517]
[1768842968748,0.41698322,3224.8,3223.9,0.15517]
[1768842974366,0.55021407,3224.8,3223.9,0.15517]
[1768842974666,0.13323085,3224.8,3223.9,0.15517]
[1768842984372,0.40851835,3224.7,3223.9,0.15517]
[1768842984572,0.13323085,3224.8,3223.9,0.15517]
[1768842984774,0.40852098,3224.7,3223.9,0.15517]
[1768842984973,0.13323085,3224.8,3223.9,0.15517]
[1768842985175,0.40852137,3224.7,3223.9,0.15517]
[1768842985379,0.13323085,3224.8,3223.9,0.15517]
[1768842985573,0.40852005,3224.7,3223.9,0.15517]
[1768842985775,0.13804671,3225.3,3223.9,0.15517]
[1768842985974,1.27675801,3225.2,3223.9,0.15517]
[1768842986174,1.27675801,3225.1,3223.9,0.15517]
[1768842986476,0.40851961,3225.0,3224.5,1.28379125]
[1768842986684,0.13804671,3224.8,3223.7,2.7811374]
[1768842986980,0.40851961,3224.7,3223.6,1.28379125]
[1768842987178,0.13804671,3224.8,3223.6,1.28379125]
[1768842987179,0.40851961,3224.6,3223.6,1.28379125]
[1768842987478,0.13804671,3224.8,3223.6,1.28379125]
[1768842987675,0.13804671,3224.8,3223.7,0.15518]
[1768842989282,1.42183796,3224.8,3223.7,0.15518]
[1768842992088,0.13804671,3224.8,3223.7,0.15518]
[1768842993078,0.13804671,3224.8,3223.7,1.43897125]
[1768842993283,1.42183796,3225.2,3223.9,1.28379125]
[1768842993479,1.2246955,3225.1,3223.9,1.28379125]
[1768842993688,1.2246955,3225.0,3223.9,1.28379125]
[1768842993983,1.2246955,3224.9,3223.9,1.28379125]
[1768842994180,1.28379125,3224.9,3223.7,0.15518]
[1768842994378,1.42183796,3224.7,3223.7,0.15518]
[1768842994880,1.83294621,3225.4,3223.4,5.8281374]
[1768842994881,1.28379125,3224.5,3223.4,3.047]
[1768842995281,1.28379125,3224.5,3223.4,0.1552]
[1768842995482,1.42183796,3224.6,3223.4,3.2032]
[1768842998592,1.42183796,3224.6,3223.4,0.1552]
[1768842998886,0.13804671,3224.5,3223.4,0.1552]
[1768842999086,0.13804671,3224.3,3223.4,0.1552]
[1768842999279,1.28379125,3224.2,3223.1,3.055]
[1768843000078,0.13804671,3224.1,3222.8,0.15522]
[1768843000284,1.42183796,3224.1,3222.9,3.055]
[1768843000889,0.13804671,3224.1,3222.9,3.055]
[1768843002189,0.13804671,3224.1,3222.8,0.15522]
[1768843002390,0.13804671,3224.1,3222.9,3.057]
[1768843003192,1.42183796,3224.1,3222.8,0.15522]
[1768843003393,1.42183796,3224.1,3222.9,3.056]
[1768843004691,1.42183796,3224.1,3222.8,3.21022]
[1768843005591,0.13568681,3224.0,3222.8,0.15522]
[1768843013899,1.42613685,3223.9,3222.8,0.15522]
[1768843014205,1.42613685,3223.9,3222.6,0.00268264]
[1768843014907,0.1423456,3223.8,3222.6,0.00268264]
[1768843017302,0.1423456,3223.8,3222.6,1.28647389]
[1768843020506,0.1423456,3223.8,3222.6,1.44170389]
[1768843020909,1.28379125,3224.1,3222.9,0.15522]
[1768843021108,1.42613685,3224.1,3222.9,0.15522]
[1768843022610,0.1423456,3224.0,3222.9,0.15522]
[1768843022904,1.42613685,3223.9,3222.9,0.15522]
[1768843028021,0.1423456,3223.9,3222.9,0.15522]
[1768843030019,0.1423456,3223.3,3222.5,2.665363]
[1768843030214,0.86847139,3223.2,3221.8,0.14098869]
[1768843030414,0.86847139,3223.2,3221.8,0.29625869]
[1768843030717,0.86847139,3223.2,3221.9,1.28379125]
[1768843031118,0.86847139,3223.2,3221.9,1.2861025]
[1768843031725,1.28379125,3223.1,3221.9,0.00231125]
[1768843032025,1.28379125,3222.9,3221.9,0.00231125]
[1768843032325,1.28379125,3223.0,3221.9,0.00231125]
[1768843033115,1.28756548,3223.1,3221.9,0.00231125]
[1768843036327,0.00377423,3223.1,3221.9,0.00231125]
[1768843036629,0.00377423,3223.1,3222.0,1.28379125]
[1768843036830,0.00377423,3223.1,3222.4,1.28379125]
[1768843037733,0.00377423,3223.1,3222.2,1.28379125]
[1768843038929,0.00377423,3223.1,3222.0,1.28379125]
[1768843039133,0.00377423,3223.1,3221.9,0.14329994]
[1768843039326,1.28756548,3223.1,3221.9,0.00231125]
[1768843039528,1.28379125,3222.9,3221.9,0.00231125]
[1768843041026,1.42613685,3222.9,3221.9,0.00231125]
[1768843041222,1.28379125,3222.7,3221.9,0.00231125]
[1768843041835,1.42613685,3222.7,3221.9,0.00231125]
[1768843045736,0.1423456,3222.7,3221.9,0.00231125]
[1768843046039,0.29738578,3223.1,3221.9,0.00231125]
[1768843046739,0.86734304,3223.0,3221.9,0.00231125]
[1768843047035,0.29738578,3223.1,3221.9,0.00231125]
[1768843047337,0.86734198,3223.0,3221.9,0.00231125]
[1768843047535,0.29738578,3223.1,3221.9,0.00231125]
[1768843053336,0.86794296,3223.0,3221.9,0.00231125]
[1768843053543,0.29738578,3223.1,3221.9,0.00231125]
[1768843053742,0.86794296,3223.0,3221.9,0.00231125]
[1768843054044,0.29738578,3223.1,3221.9,0.00231125]
[1768843054244,0.86794296,3223.0,3221.9,0.00231125]
[1768843054444,0.29738578,3223.1,3221.9,0.00231125]
[1768843054644,0.86817415,3223.0,3221.9,0.00231125]
[1768843054838,0.29738578,3223.1,3221.9,0.00231125]
[1768843055039,0.86817424,3223.0,3221.9,0.00231125]
[1768843055239,0.29738578,3223.1,3221.9,0.00231125]
[1768843055545,0.86845378,3223.0,3221.9,0.00231125]
[1768843055751,0.29738578,3223.1,3221.9,0.00231125]
[1768843055956,0.86845378,3223.0,3221.9,0.00231125]
[1768843056139,0.29738578,3223.1,3221.9,0.00231125]
[1768843056339,1.22519149,3223.0,3221.9,0.00231125]
[1768843056539,0.29738578,3223.1,3221.9,0.00231125]
[1768843056745,1.22553421,3223.0,3221.9,0.00231125]
[1768843056951,0.29738578,3223.1,3221.9,0.00231125]
[1768843057141,1.22553341,3223.0,3221.9,0.00231125]
[1768843057341,0.8692256,3222.9,3221.9,0.00231125]
[1768843057648,0.29738578,3223.1,3221.9,0.00231125]
[1768843057852,1.22613811,3223.0,3221.9,0.00231125]
[1768843058034,0.86922432,3222.9,3221.9,0.00231125]
[1768843058241,0.15898423,3223.1,3221.9,0.00231125]
[1768843058436,1.22694272,3223.0,3221.9,0.00231125]
[1768843058636,1.22694272,3222.9,3221.9,0.00231125]
[1768843058840,0.15898423,3223.1,3221.9,0.00231125]
[1768843059140,1.22694118,3223.0,3221.9,0.00231125]
[1768843059338,1.22694118,3222.9,3221.9,0.00231125]
[1768843059538,1.22694118,3222.8,3221.9,0.00231125]
[1768843059738,0.15898423,3223.1,3221.9,0.00231125]
[1768843059952,1.22820825,3223.0,3221.9,0.00231125]
[1768843060142,1.22820825,3222.9,3221.9,0.00231125]
[1768843060343,1.22820825,3222.8,3221.9,0.00231125]
[1768843060544,0.15898423,3223.1,3221.9,0.00231125]
[1768843060843,1.22830275,3223.0,3221.9,0.00231125]
[1768843061044,1.22830275,3222.9,3221.9,0.00231125]
[1768843061247,1.22830275,3222.8,3221.9,0.00231125]
[1768843061450,0.15898423,3223.1,3221.9,0.00231125]
[1768843061749,1.22840487,3223.0,3221.9,0.00231125]
[1768843061952,1.22840487,3222.9,3221.9,0.00231125]
[1768843062143,1.22840487,3222.8,3221.9,0.00231125]
[1768843062453,0.15898423,3223.1,3221.9,0.00231125]
[1768843062645,1.22850634,3223.0,3221.9,0.00231125]
[1768843062849,1.22850634,3222.9,3221.9,0.00231125]
[1768843063054,0.87090265,3222.8,3221.9,0.00231125]
[1768843063261,0.00377423,3223.1,3221.9,0.00231125]
[1768843063453,1.22847845,3223.0,3221.9,0.00231125]
[1768843063647,1.22847845,3222.9,3221.9,0.00231125]
[1768843063953,0.87087813,3222.8,3221.9,0.00231125]
[1768843064155,0.00377423,3223.1,3221.9,0.00231125]
[1768843064353,1.36687346,3223.0,3221.9,0.00231125]
[1768843064552,1.22849873,3222.9,3221.9,0.00231125]
[1768843064757,0.87089367,3222.8,3221.9,0.00231125]
[1768843064956,0.13837473,3223.0,3221.9,0.00231125]
[1768843065149,1.22851155,3222.9,3221.9,0.00231125]
[1768843065462,0.87090631,3222.8,3221.9,0.00231125]
[1768843065644,0.13837473,3223.0,3221.9,0.00231125]
[1768843065844,1.228529,3222.9,3221.9,0.00231125]
[1768843066046,0.87091875,3222.8,3221.9,0.00231125]
[1768843066256,0.13837473,3223.0,3221.9,0.00231125]
[1768843066553,1.22854877,3222.9,3221.9,0.00231125]
[1768843066754,0.87093293,3222.8,3221.9,0.00231125]
[1768843066952,0.13837473,3223.0,3221.9,0.00231125]
[1768843067154,1.22997763,3222.9,3221.9,0.00231125]
[1768843067353,0.87236176,3222.8,3221.9,0.00231125]
[1768843067553,0.13837473,3223.0,3221.9,0.00231125]
[1768843067759,1.23016723,3222.9,3221.9,0.00231125]
[1768843067952,1.23017052,3222.8,3221.5,0.15529]
[1768843068258,0.87249618,3222.7,3221.5,0.28954709]
[1768843068457,0.14214896,3223.1,3221.5,0.28954709]
[1768843068659,1.23044814,3223.0,3221.5,0.28954709]
[1768843068856,1.23044814,3222.9,3221.5,0.29200736]
[1768843069055,1.23044814,3222.8,3221.5,0.29200736]
[1768843069252,1.23055561,3222.7,3221.5,0.29200736]
[1768843069453,0.14214896,3223.1,3221.5,0.29200736]
[1768843069760,1.23081222,3223.0,3221.6,0.13425709]
[1768843069956,1.23081222,3222.9,3221.6,0.13425709]
[1768843070160,1.23081222,3222.8,3221.6,0.13425709]
[1768843070361,1.23081222,3222.7,3221.6,0.13425709]
[1768843070659,0.14214896,3223.1,3221.7,0.13425709]
[1768843070859,1.2308073,3223.0,3221.7,0.13425709]
[1768843071059,1.2308073,3222.9,3221.7,0.13425709]
[1768843071253,1.2308071,3222.8,3221.7,0.13425709]
[1768843071453,0.14214896,3223.1,3221.7,0.13425709]
[1768843071660,1.2296157,3223.0,3221.7,0.13425709]
[1768843071957,1.2296157,3222.9,3221.7,0.13425709]
[1768843072160,1.2296157,3222.8,3221.7,0.13425709]
[1768843072460,0.14214896,3223.1,3221.7,0.13425709]
[1768843072653,1.22960225,3223.0,3221.7,0.13425709]
[1768843072855,1.22960225,3222.9,3221.7,0.13425709]
[1768843073054,1.22960225,3222.8,3221.7,0.13425709]
[1768843073252,0.14214896,3223.1,3221.7,0.13425709]
[1768843073561,1.22958112,3223.0,3221.7,0.13425709]
[1768843073764,1.22958112,3222.9,3221.7,0.13425709]
[1768843074058,1.22958112,3222.8,3221.7,0.28953709]
[1768843074260,0.14214896,3223.1,3221.7,0.28953709]
[1768843074458,1.2295925,3223.0,3221.7,0.28953709]
[1768843074651,1.2295925,3222.9,3221.7,0.28953709]
[1768843074853,1.2295925,3222.8,3221.7,0.28953709]